Cogmind - Beta 15 @@@ ROGUE MODE // 2025.05.09 @ 17:35:54 Player: saltine Result: Defending 0bPrime! Performance ------------- Evolutions (8) 4000 Regions Visited (22) 4400 Robots Destroyed (95) 475 Value Destroyed (4986) 4986 Prototype IDs (134) 2680 Alien Tech Used (1) 200 Bonus (19580) 19580 TOTAL SCORE: 36321 Bonus ------- High Alert Combat Kills 1185 Follower Combat Kills 1203 Forged Quantum Companion 1000 Registered with UFD 300 Met Optimus in HQ 500 Met Zhirov 300 Met Warlord at Base 500 MAIN.C Attacked Warlord 500 Warlord Defense Kills 136 Met Optimus at Protoforge 1000 Completed Drillbomb Mission10000 Win 3000 Friendly Fire -44 Cogmind --------- Core Integrity 377/1450 Matter 300/300 Energy 540/540 System Corruption 9% Temperature Cool (0) Movement Flying (33) Location 0bPrime Parts ------- > --- POWER (2) -------- Improved Deuterium Engine Improved Quantum Reactor > --- PROPULSION (7) --- Cooled Impulse Thruster Impulse Thruster Array Impulse Thruster Array Impulse Thruster Array > --- UTILITY (12) ----- Experimental Heat Sink Experimental Heat Sink Medium Storage Unit Experimental Optical Array Experimental Melee Analysis Suite Concept Weapon Articulator (fused) Experimental Core Analyzer Experimental Reaction Control System Centrium Light Armor Plating Centrium Light Armor Plating Centrium Light Armor Plating > --- WEAPON (2) ------- Quantum Companion > --- INVENTORY (10) --- (None) Peak State ------------ > --- POWER ------------ Light Antimatter Reactor Improved Quantum Reactor > --- PROPULSION ------- Cooled Impulse Thruster Impulse Thruster Array Impulse Thruster Array Impulse Thruster Array > --- UTILITY ---------- Medium Storage Unit Experimental Optical Array Experimental Melee Analysis Suite Concept Weapon Articulator Experimental Core Analyzer Experimental Core Analyzer Nanoactuators Experimental Reaction Control System Advanced Phase Shifter Concept Core Shell Experimental Propulsion Shielding Centrium Light Armor Plating > --- WEAPON ----------- Quantum Companion > --- INVENTORY -------- UFD Drillbomb [Rating: 200] Favorites ----------- Power Backup Power III Engine Backup Power III Power Core Light Fission Core Reactor Light Quantum Reactor Propulsion Cooled VTOL Module Treads Light Treads Leg Carbon-fiber Leg Wheel Compact Wheel Flight Unit Cooled VTOL Module Utility Improved Hacking Suite Device Seismic Detector Storage Medium Storage Unit Processor Experimental Signal Interpreter Hackware Improved Hacking Suite Protection Centrium Light Armor Plating Weapon Companion Sword Energy Gun Small Laser Energy Cannon Advanced Plasma Cannon Ballistic Gun Light Assault Rifle Ballistic Cannon Battle Cannon Launcher Smartbomb Launcher Special Weapon CPS Tube Slashing Weapon Companion Sword Piercing Weapon Vortex Lance Special Melee Weapon Advanced Datajack Build | -11 -10 -10 -7 -5 -5 -5 -5 -5 -5 -4 -4 -4 -4 -4 -4 -4 -3 -3 -3 -2 -2 -2 ------- Run | Yrd Mat Sub Scr Fac Was Fac Upp Upp Zhi Pro Fac Was Fac Upp Upp War Pro Res Tes Res Qua Frg Slots Evolved 16 | . . . . 10 . . . . . . 2 . . . . . . 2 . 2 . . Power 1 | . . . . 1 . . . . . . . . . . . . . . . . . . Propulsion 5 | . . . . 3 . . . . . . 1 . . . . . . 1 . . . . Utility 10 | . . . . 6 . . . . . . 1 . . . . . . 1 . 2 . . Weapon . | . . . . . . . . . . . . . . . . . . . . . . . Parts Attached 169 | 2 . 7 13 20 4 4 1 . 3 1 6 5 5 1 . 8 . 6 7 4 4 68 Power 30 | . . . 3 2 . 1 1 . 1 . . . . 1 . 2 . . 1 1 1 16 Engine 5 | . . . 2 1 . . . . . . . . . . . 1 . . . . . 1 Core 5 | . . . 1 1 . 1 1 . . . . . . 1 . . . . . . . . Reactor 20 | . . . . . . . . . 1 . . . . . . 1 . . 1 1 1 15 Propulsion 36 | . . 2 6 6 2 1 . . . . 2 . 1 . . 2 . 2 1 . 1 10 Treads 2 | . . 2 . . . . . . . . . . . . . . . . . . . . Leg 2 | . . . 2 . . . . . . . . . . . . . . . . . . . Wheel 4 | . . . 4 . . . . . . . . . . . . . . . . . . . Hover . | . . . . . . . . . . . . . . . . . . . . . . . Flight 28 | . . . . 6 2 1 . . . . 2 . 1 . . 2 . 2 1 . 1 10 Utility 83 | 1 . . 2 10 . 2 . . 2 . 3 4 4 . . 3 . 4 4 3 2 39 Device 41 | 1 . . 1 5 . 1 . . . . 2 2 1 . . 2 . 2 2 2 2 18 Storage 3 | . . . 1 . . . . . 1 . . . . . . . . 1 . . . . Processor 12 | . . . . 1 . . . . . . 1 . 2 . . . . . . . . 8 Hackware 11 | . . . . 4 . 1 . . . . . 2 1 . . . . 1 1 1 . . Protection 16 | . . . . . . . . . 1 . . . . . . 1 . . 1 . . 13 Artifact . | . . . . . . . . . . . . . . . . . . . . . . . Weapon 20 | 1 . 5 2 2 2 . . . . 1 1 1 . . . 1 . . 1 . . 3 Energy Gun 4 | 1 . 2 . . . . . . . . . . . . . . . . 1 . . . Energy Cannon 4 | . . 1 . 1 1 . . . . . . 1 . . . . . . . . . . Ballistic Gun 4 | . . 1 . . . . . . . . . . . . . . . . . . . 3 Ballistic Cannon 2 | . . 1 . . 1 . . . . . . . . . . . . . . . . . Launcher 1 | . . . . . . . . . . 1 . . . . . . . . . . . . Special Weapon 2 | . . . 1 1 . . . . . . . . . . . . . . . . . . Impact Weapon . | . . . . . . . . . . . . . . . . . . . . . . . Slashing Weapon 1 | . . . 1 . . . . . . . . . . . . . . . . . . . Piercing Weapon 1 | . . . . . . . . . . . . . . . . 1 . . . . . . Special Melee Weapon 1 | . . . . . . . . . . . 1 . . . . . . . . . . . Unidentified Prototypes 32 | . . . 1 . 1 1 . . 4 . 1 1 2 . . 3 . 1 5 . 2 10 Parts Lost 41 | . . 1 . 1 . 3 . . . 2 . . . . 1 . . 1 3 1 . 28 Power 6 | . . . . . . 1 . . . . . . . . . . . 1 . . . 4 Propulsion 10 | . . . . . . 1 . . . 2 . . . . . . . . . . . 7 Utility 22 | . . . . . . . . . . . . . . . 1 . . . 3 1 . 17 Weapon 3 | . . 1 . 1 . 1 . . . . . . . . . . . . . . . . Highest Loss Streak 6 | . . 1 . 1 . 3 . . . 2 . . . . 1 . . 1 3 1 . 6 To Critical Strikes . | . . . . . . . . . . . . . . . . . . . . . . . Average Backups 5 | 6 7 7 10 5 4 3 4 4 4 4 4 4 3 4 4 4 3 7 8 8 8 . Power . | 1 1 1 . . 1 . . 1 . . . . . . . . . . . . 1 . Propulsion 1 | 4 4 2 2 . . . . . . . . . . . . . . 1 1 1 . . Utility 2 | . . 1 4 2 2 2 2 2 2 2 2 2 1 1 1 1 1 4 6 5 5 . Weapon 1 | 1 2 2 2 1 1 1 1 1 1 1 1 1 1 2 2 2 1 1 1 1 2 . Tool/Special . | . . . . . . . . . . . . . . . . . . . . . . . Unused Backups 26 | . . 3 11 5 . . 1 . 2 . . . . . . . 1 . 1 1 . 1 Power 4 | . . . . 2 . . . . 1 . . . . . . . . . . 1 . . Propulsion 7 | . . 2 3 . . . 1 . . . . . . . . . . . 1 . . . Utility 10 | . . 1 6 1 . . . . 1 . . . . . . . . . . . . 1 Weapon 4 | . . . 2 2 . . . . . . . . . . . . . . . . . . Tool/Special 1 | . . . . . . . . . . . . . . . . . 1 . . . . . Average Slot Usage (%) 89 | . 100 100 88 82 100 93 94 94 93 90 80 92 89 88 89 90 93 91 90 91 90 82 Engine 5 | . 14 14 10 4 5 3 3 . . . . 4 5 5 5 4 5 3 . . . . Core 2 | . . . 2 5 5 6 6 11 6 5 5 5 5 5 5 3 . . . . . . Reactor 2 | . . . . . . . . . 3 4 . . . . . 1 5 4 5 8 7 6 Treads 4 | . . 19 10 . . . . . . . . . . . . . . . . . . . Leg 4 | . 28 8 12 . . . . . . . . . . . . . . . . . . . Flight 16 | . . . . 18 29 27 29 29 29 26 20 26 25 26 26 30 31 32 33 30 30 23 Device 16 | . 14 14 15 23 23 23 23 23 22 23 24 17 14 14 15 17 20 18 18 22 21 12 Storage 5 | . 14 14 12 1 . . . . . . . . . . . . . 3 4 4 4 4 Processor 4 | . . . . . . . . . . . . 5 5 5 5 5 5 4 4 4 4 17 Hackware 10 | . . . . 15 23 23 23 23 23 23 21 23 25 26 26 18 15 17 18 16 17 4 Protection 1 | . . . . . . . . . . . . . . . . 2 5 . . . . 5 Ballistic Gun 2 | . 14 8 5 . . . . . . . . . . . . . . . . . . . Ballistic Cannon 2 | . . 9 5 . . . . . . . . . . . . . . . . . . . Slashing Weapon 5 | . . . 8 5 5 5 5 5 5 4 5 5 5 4 5 5 4 4 4 4 4 4 Peak Build Rating 200 | 7 8 10 28 76 86 92 80 80 84 88 97 112 118 110 106 122 129 139 149 159 153 200 Average Rating 81 | 6 7 9 16 54 83 80 79 80 81 78 80 104 103 104 106 111 121 126 134 145 141 169 On Entrance 82 | 6 7 8 9 18 76 86 79 80 80 82 62 97 108 105 106 100 122 121 124 128 141 141 Naked Turns . | . . . . . . . . . . . . . . . . . . . . . . . Heaviest Build 55 | 13 13 22 36 31 30 31 19 19 26 26 17 30 29 33 24 30 35 36 41 50 50 55 Greatest Support 59 | 20 20 40 40 41 33 33 31 31 31 31 37 37 37 35 41 41 36 48 58 58 56 59 Greatest Overweight (x) 1 | . . . 1 . 1 . . . . . . . . . . . . . . . . 1 Average Overweight (x) . | . . . . . . . . . . . . . . . . . . . . . . . Largest Inventory Capacity 15 | 8 8 8 15 15 5 5 5 5 5 5 5 5 5 5 5 5 5 10 10 10 10 10 Average Capacity 8 | 8 8 8 11 6 5 5 5 5 5 5 5 5 5 5 5 5 5 9 10 10 10 10 Most Carried 15 | 7 8 8 15 15 5 5 5 5 5 5 5 5 5 5 5 5 5 10 10 10 10 10 Average Carried 7 | 6 7 7 10 6 5 4 5 5 4 4 5 4 4 4 5 5 4 8 9 9 9 8 Final Capacity 15 | 8 8 8 15 5 5 5 5 5 5 5 5 5 5 5 5 5 5 10 10 10 10 10 Final Carried 15 | 7 8 8 15 5 5 5 5 5 5 5 5 5 5 5 5 5 5 10 10 10 10 . Class Distribution -------------------- 32% | Mutant 20% | Hacker-Ninja 13% | Hacker-Sprinter 10% | Scavenger-Sprinter 9% | Wizard-Ninja 5% | Derelict-Mutant Dominant Class ---------------- Mutant | -10/Materials Mutant | -10/Subcaves Mutant | -7/Scraptown Hacker-Sprinter | -5/Factory Hacker-Sprinter | -5/Waste Hacker-Sprinter | -5/Factory Hacker-Sprinter | -5/Upper Caves Hacker-Sprinter | -5/Upper Caves Hacker-Sprinter | -5/Zhirov Hacker-Sprinter | -4/Proximity Caves Hacker-Sprinter | -4/Factory Wizard-Scout | -4/Waste Wizard-Ninja | -4/Factory Wizard-Ninja | -4/Upper Caves Wizard-Ninja | -4/Upper Caves Hacker-Ninja | -4/Warlord Hacker-Ninja | -3/Proximity Caves Hacker-Ninja | -3/Research Wizard-Ninja | -3/Testing Hacker-Ninja | -2/Research Hacker-Ninja | -2/Quarantine Scavenger-Sprinter | -2/Protoforge Resources | -11 -10 -10 -7 -5 -5 -5 -5 -5 -5 -4 -4 -4 -4 -4 -4 -4 -3 -3 -3 -2 -2 -2 ----------- Run | Yrd Mat Sub Scr Fac Was Fac Upp Upp Zhi Pro Fac Was Fac Upp Upp War Pro Res Tes Res Qua Frg Matter Collected 3089 | 222 6 163 169 225 60 45 10 . 60 36 . 140 110 122 . 100 79 . 191 99 133 1119 Remotely . | . . . . . . . . . . . . . . . . . . . . . . . Salvage Created 5278 | 28 55 310 . 220 . . . . 376 41 . . 323 136 . 93 182 . 191 99 133 3091 Parts 247 | 5 8 18 . 1 . . . . 5 6 . . 12 10 . 4 20 . 2 3 3 150 Haulers Intercepted 6 | . . . . 2 . . . . . . . . 3 . . . . . . 1 . . Recyclers Shooed 1 | . . . . . . . . . . . . . . . . . . . . . 1 . Parts Field Recycled . | . . . . . . . . . . . . . . . . . . . . . . . Retrieved Matter . | . . . . . . . . . . . . . . . . . . . . . . . Parts Self-Destructed 54 | . . 13 . . . . 5 . 4 11 . . . 5 1 . 15 . . . . . Prevented 7 | . . . . . . . . . . . . . . 1 6 . . . . . . . Kills | -11 -10 -10 -7 -5 -5 -5 -5 -5 -5 -4 -4 -4 -4 -4 -4 -4 -3 -3 -3 -2 -2 -2 ------- Run | Yrd Mat Sub Scr Fac Was Fac Upp Upp Zhi Pro Fac Was Fac Upp Upp War Pro Res Tes Res Qua Frg Combat Hostiles Destroyed 72 | . 1 7 . . . . . . . 3 . . . 6 . 1 10 . . . . 44 Melee 32 | . . . . . . . . . . 1 . . . 1 . 1 3 . . . . 26 Guns 3 | . 1 2 . . . . . . . . . . . . . . . . . . . . Cannons 22 | . . 5 . . . . . . . . . . . . . . . . . . . 17 AOE 14 | . . . . . . . . . . 2 . . . 5 . . 7 . . . . . Classes Destroyed 24 | 1 2 2 . 1 . . . . . 1 . . . 1 . 1 1 . 2 1 . 11 Builder 1 | . . . . . . . . . . . . . . . . . . . . 1 . . Tunneler 2 | 2 . . . . . . . . . . . . . . . . . . . . . . Hauler 6 | . . . . 2 . . . . . . . . 3 . . . . . . 1 . . Recycler 2 | . . . . . . . . . . . . . . . . . . . 1 . 1 . Mechanic 1 | . . . . . . . . . . . . . . . . . . . . . . 1 Operator 2 | . 2 . . . . . . . . . . . . . . . . . . . . . Drone 7 | . . . . . . . . . . . . . . . . . 2 . . . . 5 Turret 2 | . . 2 . . . . . . . . . . . . . . . . . . . . Watcher 7 | . . . . . . . . . . . . . . . . . . . 1 . . 6 Swarmer 22 | . . . . . . . . . . 3 . . . 5 . . 8 . . . . 6 Saboteur 2 | . . . . . . . . . . . . . . . . . . . . . . 2 Grunt 3 | . 1 . . . . . . . . . . . . . . . . . . . . 2 Brawler 2 | . . . . . . . . . . . . . . . . . . . . . . 2 Duelist 1 | . . . . . . . . . . . . . . . . . . . . . . 1 Protector 3 | . . . . . . . . . . . . . . . . . . . . . . 3 Sentry 1 | . . . . . . . . . . . . . . . . . . . . . . 1 Specialist 1 | . . . . . . . . . . . . . . . . . . . . . . 1 Hunter 6 | . . . . . . . . . . . . . . . . . . . . . . 6 Programmer 1 | . . . . . . . . . . . . . . . . . . . . . . 1 Hotshot 3 | . . . . . . . . . . . . . . . . . . . . . . 3 Striker 4 | . . . . . . . . . . . . . . . . . . . . . . 4 Executioner 6 | . . . . . . . . . . . . . . . . . . . . . . 6 Subdweller 7 | . . 7 . . . . . . . . . . . . . . . . . . . . Scrapoid 1 | . . . . . . . . . . . . . . . . . . . . . . 1 Bouncer 1 | . . . . . . . . . . . . . . . . 1 . . . . . . Mutant 1 | . . . . . . . . . . . . . . 1 . . . . . . . . Best Kill Streak 6 | 1 1 2 . 1 . . . . . 3 . . 1 5 . 1 5 . 1 2 1 6 Combat Bots Only 5 | . 1 2 . . . . . . . 3 . . . 5 . 1 5 . . . . 5 Max Kills in Single Turn 5 | 1 1 1 . 1 . . . . . 2 . . 1 3 . 1 5 . 1 1 1 1 Gunslinging . | . . . . . . . . . . . . . . . . . . . . . . . Exploded 5 | . . . . . . . . . . 2 . . . 3 . . 5 . . . . . Melee 1 | . . . . . . . . . . 1 . . . 1 . 1 1 . . . . 1 Uniques/NPCs Destroyed . | . . . . . . . . . . . . . . . . . . . . . . . Combat | -11 -10 -10 -7 -5 -5 -5 -5 -5 -5 -4 -4 -4 -4 -4 -4 -4 -3 -3 -3 -2 -2 -2 -------- Run | Yrd Mat Sub Scr Fac Was Fac Upp Upp Zhi Pro Fac Was Fac Upp Upp War Pro Res Tes Res Qua Frg Hostile Shots Fired 516 | . 4 52 . 3 . 6 4 . . 20 . . 4 18 2 . 2 16 15 14 6 350 Missed 266 | . 1 23 . 2 . 3 1 . . 11 . . 3 8 . . 2 11 7 8 2 184 Deflected 6 | . . . . . . . . . . . . . . . . . . . . . . 6 Hits 250 | . 3 29 . 1 . 3 3 . . 9 . . 1 10 2 . . 5 8 6 4 166 Melee 10 | . . . . . . . . . . . . . . . . . . . . . . 10 Projectile 240 | . 3 29 . 1 . 3 3 . . 9 . . 1 10 2 . . 5 8 6 4 156 AOE 4 | . . . . . . 2 . . . . . . . . . 2 . . . . . . Critical Strikes 21 | . . 1 . . . . . . . . . . . . . . . 1 . . . 19 Actively Blocked 1 | . . . . . . . . . . . . . . . . . . . . . . 1 Damage Taken 7056 | . 31 528 . 31 . 224 42 . . 148 . 70 42 108 46 118 . 103 152 143 119 5151 Core 1433 | . 10 147 . 10 . 43 . . . 57 . 43 23 7 . 9 . . 11 72 93 908 Absorbed by Shields 52 | . . . . . . . . . . . . . . . . . . . . . . 52 Redirected to Shielding 255 | . . . . . . . . . . . . . . . . . . . . . . 255 Regen/Repaired (Parts) 134 | . . . . . 65 . 3 . . . . 44 . . . 22 . . . . . . Core Remaining (%) 73 | 100 . . 37 . . . . . . 89 . . . . . . 92 . 99 . . 26 Volleys Fired 94 | 2 6 34 . 8 . . . . . 1 . . 6 2 . . 5 8 . 3 1 18 Largest 2 | 2 2 2 . 1 . . . . . 1 . . 1 1 . . 1 1 . 1 1 1 Hottest 120 | 60 60 113 . 98 . . . . . 46 . . 120 46 . . 120 120 . 80 80 80 Shots Fired 135 | 4 12 67 . 8 . . . . . 1 . . 6 2 . . 5 8 . 3 1 18 Gun 71 | 4 12 33 . . . . . . . . . . . . . . . . . 3 1 18 Cannon 58 | . . 34 . 8 . . . . . . . . 6 . . . 2 8 . . . . Launcher 6 | . . . . . . . . . . 1 . . . 2 . . 3 . . . . . Special . | . . . . . . . . . . . . . . . . . . . . . . . Kinetic 66 | 2 6 45 . . . . . . . . . . . . . . . . . . . 13 Thermal 60 | 1 6 20 . 8 . . . . . . . . 6 . . . 2 8 . 3 1 5 Explosive 6 | . . . . . . . . . . 1 . . . 2 . . 3 . . . . . Electromagnetic 3 | 1 . 2 . . . . . . . . . . . . . . . . . . . . Robot Hit Streak 10 | 3 5 10 . . . . . . . . . . . 6 . . . . . . . 3 Robot Miss Streak 3 | . 2 2 . . . . . . . . . . . . . . . . . . . 3 Penetration Max 1 | . . . . . . . . . . . . . . . . . . . . . . 1 Secondary Targets . | . . . . . . . . . . . . . . . . . . . . . . . Autonomous 42 | . . . . . . . . . . . . . . . . . . . . . . 42 Shots Hit Robots 201 | 3 8 50 . 6 . . . . 7 1 . . 11 4 . 3 4 . 5 2 3 94 Core Hits 134 | 2 6 19 . 3 . . . . 5 2 . . 4 7 . 1 15 . 2 1 1 66 Critical Kills . | . . . . . . . . . . . . . . . . . . . . . . . Critical Parts Destroyed . | . . . . . . . . . . . . . . . . . . . . . . . Critical Strikes 2 | . . 2 . . . . . . . . . . . . . . . . . . . . Blast 2 | . . 2 . . . . . . . . . . . . . . . . . . . . Melee Attacks 332 | . . . . 31 . 10 2 1 7 6 12 . 30 7 . 7 9 43 15 17 11 124 Impact . | . . . . . . . . . . . . . . . . . . . . . . . Slashing 331 | . . . . 31 . 10 2 1 7 6 12 . 30 7 . 6 9 43 15 17 11 124 Piercing . | . . . . . . . . . . . . . . . . . . . . . . . Entropic 1 | . . . . . . . . . . . . . . . . 1 . . . . . . Sneak Attacks 31 | . . . . 2 . . . . . . . . 4 . . 3 1 . 4 2 1 14 Combat Hostiles 11 | . . . . . . . . . . . . . . . . 3 1 . . . . 7 Follow-up Attacks 3 | . . . . . . . . . . . . . . . . . . . . . . 3 Damage Inflicted 16186 | 54 82 781 . 359 . . . . 589 245 . . 667 767 . 248 894 . 386 223 212 10679 Guns 570 | 27 73 257 . . . . . . . . . . . . . . . . . . . 213 Cannons 4224 | . . 524 . . . . . . . . . . . . . . . . . . . 3700 Explosions 1474 | 27 . . . . . . . . . 211 . . . 560 . . 676 . . . . . Melee 9909 | . . . . 359 . . . . 589 34 . . 667 207 . 248 218 . 386 223 212 6766 Ramming 9 | . 9 . . . . . . . . . . . . . . . . . . . . . Kinetic 670 | . 31 426 . . . . . . . . . . . . . . . . . . . 213 Thermal 425 | 39 42 344 . . . . . . . . . . . . . . . . . . . . Explosive 1447 | . . . . . . . . . . 211 . . . 560 . . 676 . . . . . Electromagnetic 26 | 15 . 11 . . . . . . . . . . . . . . . . . . . . Impact . | . . . . . . . . . . . . . . . . . . . . . . . Slashing 9909 | . . . . 359 . . . . 589 34 . . 667 207 . 248 218 . 386 223 212 6766 Piercing . | . . . . . . . . . . . . . . . . . . . . . . . Phasic 3700 | . . . . . . . . . . . . . . . . . . . . . . 3700 Highest Corruption 9 | . . . . . . . . . . . . . . . . . . . . . 1 9 Average Corruption 2 | . . . . . . . . . . . . . . . . . . . . . 1 2 Corruption Purged . | . . . . . . . . . . . . . . . . . . . . . . . Corruption Blocked . | . . . . . . . . . . . . . . . . . . . . . . . Effects 37 | . . . . . . . . . . . . . . . . . . . . . . 37 Message Errors 11 | . . . . . . . . . . . . . . . . . . . . . . 11 Matter Fused 12 | . . . . . . . . . . . . . . . . . . . . . . 12 Heat Flow Errors 3 | . . . . . . . . . . . . . . . . . . . . . . 3 Energy Discharges 5 | . . . . . . . . . . . . . . . . . . . . . . 5 Parts Rejected 1 | . . . . . . . . . . . . . . . . . . . . . . 1 Parts Fused 1 | . . . . . . . . . . . . . . . . . . . . . . 1 Data Loss (minor) 1 | . . . . . . . . . . . . . . . . . . . . . . 1 Data Loss (major) 1 | . . . . . . . . . . . . . . . . . . . . . . 1 Alerts 2 | . . . . . . . . . . . . . . . . . . . . . . 2 Overload Shots . | . . . . . . . . . . . . . . . . . . . . . . . Overflow Damage 1439 | . . . . 61 . . . . 93 4 . . 82 28 . . 87 . 123 68 70 823 Projectiles 259 | . . . . . . . . . . . . . . . . . . . . . . 259 Explosions 111 | . . . . . . . . . . . . . . 28 . . 83 . . . . . Melee 1069 | . . . . 61 . . . . 93 4 . . 82 . . . 4 . 123 68 70 564 Knockbacks 4 | . . 4 . . . . . . . . . . . . . . . . . . . . Impact . | . . . . . . . . . . . . . . . . . . . . . . . Kinetic 4 | . . 4 . . . . . . . . . . . . . . . . . . . . Secondary . | . . . . . . . . . . . . . . . . . . . . . . . Self-Inflicted Damage . | . . . . . . . . . . . . . . . . . . . . . . . Shots . | . . . . . . . . . . . . . . . . . . . . . . . Rammed 1 | . . . . . . . . . . . . . . . . . . 1 . . . . Targets Rammed 2 | . 1 . . . . . . . . . . . . . . . . 1 . . . . Kicked 1 | . 1 . . . . . . . . . . . . . . . . . . . . . Crushed . | . . . . . . . . . . . . . . . . . . . . . . . Highest Temperature 441 | 20 32 14 . 20 . 8 . . . . . . 66 1 . 102 32 441 102 205 284 193 Average Temperature 48 | 15 17 7 . 8 . 4 . . . . . . 30 1 . 23 20 55 26 99 143 71 Received Heat Transfer 1200 | . 18 180 . . . 24 . . . 18 . . . 20 9 . . 369 . 9 9 544 Effects 1 | . . . . . . . . . . . . . . . . . . . . . 1 . Interference 1 | . . . . . . . . . . . . . . . . . . . . . 1 . Siege Activations . | . . . . . . . . . . . . . . . . . . . . . . . Martial Activations . | . . . . . . . . . . . . . . . . . . . . . . . Shielding Activations . | . . . . . . . . . . . . . . . . . . . . . . . Robots Disrupted 3 | . . . . . . . . . . . . . . . . . . . 1 . . 2 Combat Hostiles 2 | . . . . . . . . . . . . . . . . . . . . . . 2 Robots Corrupted . | . . . . . . . . . . . . . . . . . . . . . . . Combat Hostiles . | . . . . . . . . . . . . . . . . . . . . . . . Parts Fried 1 | . . . . . . . . . . . . . . . . . . . . . . 1 Impact Corruptions . | . . . . . . . . . . . . . . . . . . . . . . . Robots Melted . | . . . . . . . . . . . . . . . . . . . . . . . Combat Hostiles . | . . . . . . . . . . . . . . . . . . . . . . . Parts Melted . | . . . . . . . . . . . . . . . . . . . . . . . Heat Transferred 708 | 75 100 533 . . . . . . . . . . . . . . . . . . . . Parts Sabotaged . | . . . . . . . . . . . . . . . . . . . . . . . Parts Stolen . | . . . . . . . . . . . . . . . . . . . . . . . Parts Stripped 12 | . . . . . . . . . . . . . . . . . . . . . . 12 Power Chain Reactions 1 | 1 . . . . . . . . . . . . . . . . . . . . . . Alert | -11 -10 -10 -7 -5 -5 -5 -5 -5 -5 -4 -4 -4 -4 -4 -4 -4 -3 -3 -3 -2 -2 -2 ------- Run | Yrd Mat Sub Scr Fac Was Fac Upp Upp Zhi Pro Fac Was Fac Upp Upp War Pro Res Tes Res Qua Frg Maximum Alert Level 4 | . . . . . . 2 . . . . 1 . 1 . . . . . . . . 4 Low Security (%) 63 | 100 100 . . 100 100 25 . . . . . 100 90 . . . . 100 100 100 100 35 Level 1 7 | . . . . . . 30 . . . . 100 . 9 . . . . . . . . 5 Level 2 6 | . . . . . . 44 . . . . . . . . . . . . . . . 8 Level 3 10 | . . . . . . . . . . . . . . . . . . . . . . 24 Level 4 11 | . . . . . . . . . . . . . . . . . . . . . . 26 Level 5 . | . . . . . . . . . . . . . . . . . . . . . . . High Security . | . . . . . . . . . . . . . . . . . . . . . . . Max Security . | . . . . . . . . . . . . . . . . . . . . . . . Peak Influence 1409 | 5 30 . . 54 18 568 . . . . 340 108 314 . . . . 177 195 165 142 1409 Initial 334 | . . . . . 18 . . . . . 334 102 . . . . . 175 81 101 92 79 Average 345 | 1 6 . . 5 1 335 . . . . 309 39 63 . . . . 152 99 106 106 656 Influence Increases 6813 | 10 51 70 . 209 . 958 145 . 15 256 339 54 845 140 . 225 190 381 259 174 110 2382 Destroy 0b10 Robot/C 2040 | . 20 40 . . . 440 100 . . 100 . . 180 100 . 160 160 . 20 . . 720 Destroy 0b10 Robot/NC 210 | 10 10 . . 10 . 15 . . 15 . . . 35 . . . 10 . 15 10 5 75 Destroy Leader 336 | . 10 . . 4 . 110 10 . . 10 . . 36 10 . . 20 . 2 2 . 122 Allied During Kill 440 | . . . . . . 209 20 . . 26 . . 135 . . 50 . . . . . . Successful Hack 319 | . 11 . . 29 . 72 . . . . 6 . 25 . . . . 60 49 24 12 31 Disable Machine 390 | . . . . 60 . . . . . . 15 . 225 . . . . . 75 . 15 . Destroy Structure 723 | . . . . 46 . 82 . . . . 18 54 194 . . . . 96 68 48 18 99 Advance Influence 450 | . . . . . . . . . . . 300 . . . . . . 150 . . . . Partial Spotted 315 | . . . . . . 15 . . . . . . 15 . . . . 45 30 60 15 135 Lose Combat Pursuer 1590 | . . 30 . 60 . 15 15 . . 120 . . . 30 . 15 . 30 . 30 45 1200 Influence Decreases 5404 | 10 51 70 . 155 54 446 350 159 163 201 101 347 755 186 44 186 191 273 225 189 133 1115 Entered New Map 1020 | . . . . . 36 . 190 59 148 . 21 191 . 34 9 . 39 13 65 79 73 63 Time Decay 2763 | 10 51 70 . 133 18 196 90 100 15 140 80 96 170 102 35 166 152 230 100 100 60 649 Lost Part 381 | . . . . 10 . 30 . . . 11 . . . . . . . 10 30 10 . 280 Lost Ally 661 | . . . . 10 . 220 70 . . 50 . 60 121 50 . 20 . 20 30 . . 10 Purge Threat 579 | . . . . 2 . . . . . . . . 464 . . . . . . . . 113 Squads Dispatched 49 | . 2 . . 5 . 8 . . . . 1 . 9 . . . . 10 2 4 2 6 Investigation 22 | . . . . 4 . 3 . . . . . . 6 . . . . 3 . 3 . 3 Extermination 10 | . . . . 1 . 1 . . . . . . 1 . . . . 4 1 1 1 . Reinforcement 15 | . 2 . . . . 2 . . . . 1 . 2 . . . . 3 1 . 1 3 Assault . | . . . . . . . . . . . . . . . . . . . . . . . Garrison 2 | . . . . . . 2 . . . . . . . . . . . . . . . . Intercept . | . . . . . . . . . . . . . . . . . . . . . . . Searches Triggered . | . . . . . . . . . . . . . . . . . . . . . . . Construction Impeded 1 | . . . . . . . . . . . . . 1 . . . . . . . . . Haulers Reinforced 1 | . . . . . . 1 . . . . . . . . . . . . . . . . Active Scanning Responses . | . . . . . . . . . . . . . . . . . . . . . . . Cargo Convoy Interrupts . | . . . . . . . . . . . . . . . . . . . . . . . Stealth | -11 -10 -10 -7 -5 -5 -5 -5 -5 -5 -4 -4 -4 -4 -4 -4 -4 -3 -3 -3 -2 -2 -2 --------- Run | Yrd Mat Sub Scr Fac Was Fac Upp Upp Zhi Pro Fac Was Fac Upp Upp War Pro Res Tes Res Qua Frg Distress Signals 7 | . . . . . . . . . . . . . 1 . . . . 2 . . . 4 Communications Jammed 2 | . . . . . . . . . . . . . . . . . . . . 2 . . Distress Signals 2 | . . . . . . . . . . . . . . . . . . . . 2 . . Times Spotted 470 | . 5 11 . 15 . 6 3 . . 14 2 3 7 6 1 18 2 13 13 12 8 331 Peak Tracking Total 23 | . 1 3 . 6 . 3 2 . . 8 1 3 3 3 1 6 2 11 9 9 6 23 Tactical Retreats 58 | . . 1 . 3 . 1 1 . . 4 . . . 1 . 1 . 3 . 1 2 40 Traps | -11 -10 -10 -7 -5 -5 -5 -5 -5 -5 -4 -4 -4 -4 -4 -4 -4 -3 -3 -3 -2 -2 -2 ------- Run | Yrd Mat Sub Scr Fac Was Fac Upp Upp Zhi Pro Fac Was Fac Upp Upp War Pro Res Tes Res Qua Frg Traps Triggered 14 | . . . . 1 . 3 . . . . 1 . . . . . . . . . 3 6 Indirectly . | . . . . . . . . . . . . . . . . . . . . . . . Trap Hack Attempts . | . . . . . . . . . . . . . . . . . . . . . . . Triggered . | . . . . . . . . . . . . . . . . . . . . . . . Disarmed . | . . . . . . . . . . . . . . . . . . . . . . . Reprogrammed . | . . . . . . . . . . . . . . . . . . . . . . . Reused . | . . . . . . . . . . . . . . . . . . . . . . . Traps Extracted . | . . . . . . . . . . . . . . . . . . . . . . . Installed . | . . . . . . . . . . . . . . . . . . . . . . . Triggered . | . . . . . . . . . . . . . . . . . . . . . . . Machines | -11 -10 -10 -7 -5 -5 -5 -5 -5 -5 -4 -4 -4 -4 -4 -4 -4 -3 -3 -3 -2 -2 -2 ---------- Run | Yrd Mat Sub Scr Fac Was Fac Upp Upp Zhi Pro Fac Was Fac Upp Upp War Pro Res Tes Res Qua Frg Machines Disabled 28 | . . . . 4 . . . . . . 1 . 15 1 . 1 . . 5 . 1 . Max in Single Turn 1 | . . . . 1 . . . . . . 1 . 1 1 . 1 . . 1 . 1 . Garrison Access 6 | . . . . 1 . 1 . . . . . . 2 . . . . 1 . 1 . . Machines Repaired . | . . . . . . . . . . . . . . . . . . . . . . . Machines Dismantled . | . . . . . . . . . . . . . . . . . . . . . . . Machines Sabotaged . | . . . . . . . . . . . . . . . . . . . . . . . Overloaded Fab Kills . | . . . . . . . . . . . . . . . . . . . . . . . Hacking | -11 -10 -10 -7 -5 -5 -5 -5 -5 -5 -4 -4 -4 -4 -4 -4 -4 -3 -3 -3 -2 -2 -2 --------- Run | Yrd Mat Sub Scr Fac Was Fac Upp Upp Zhi Pro Fac Was Fac Upp Upp War Pro Res Tes Res Qua Frg Machines Accessed 93 | . 3 1 4 14 . 12 1 . 4 . 1 . 13 2 . 5 . 10 7 6 1 9 Terminals 46 | . 3 . . 9 . 8 . . . . . . 5 . . . . 5 7 2 1 6 Fabricators 7 | . . . . 2 . . . . . . 1 . 3 . . . . 1 . . . . Repair Stations . | . . . . . . . . . . . . . . . . . . . . . . . Recycling Units 17 | . . . . 2 . 3 . . . . . . 3 . . . . 3 . 3 . 3 Scanalyzers . | . . . . . . . . . . . . . . . . . . . . . . . Garrison Access 6 | . . . . 1 . 1 . . . . . . 2 . . . . 1 . 1 . . Total Hacks 273 | . 7 3 41 34 . 23 1 . 17 . 2 . 42 2 . 14 . 25 24 13 2 23 Successful 199 | . 3 3 41 20 . 18 1 . 17 . 2 . 30 2 . 14 . 12 10 9 1 16 Failed 72 | . 4 . . 13 . 5 . . . . . . 11 . . . . 13 14 4 1 7 Catastrophic 11 | . . . . 3 . 1 . . . . . . . . . . . 3 4 . . . Database Lockouts 2 | . . . . 1 . . . . . . . . 1 . . . . . . . . . Manual 93 | . 2 . . 19 . 8 . . . . . . 16 . . 1 . 10 16 4 . 17 Terminals 139 | . 7 . . 24 . 18 . . . . . . 24 . . . . 14 24 7 2 19 Fabricators 16 | . . . . 5 . . . . . . 2 . 7 . . . . 2 . . . . Repair Stations . | . . . . . . . . . . . . . . . . . . . . . . . Recycling Units 31 | . . . . 4 . 4 . . . . . . 8 . . . . 6 . 5 . 4 Scanalyzers . | . . . . . . . . . . . . . . . . . . . . . . . Garrison Access 9 | . . . . 1 . 1 . . . . . . 3 . . . . 3 . 1 . . Terminal Hacks 139 | . 3 3 41 8 . 12 1 . 17 . . . 15 2 . 14 . 6 6 4 1 6 Record 58 | . . 3 40 . . . . . 5 . . . . . . 9 . . 1 . . . Part Schematic 9 | . . . . 1 . 1 . . 4 . . . 1 . . . . . 1 . . 1 Robot Analysis 6 | . 2 . . . . . . . 4 . . . . . . . . . . . . . Prototype ID Bank 17 | . 1 . . . . 3 . . 4 . . . 2 . . 4 . . 2 1 . . Open Door 5 | . . . 1 . . . 1 . . . . . . 2 . 1 . . . . . . Level Access Points 1 | . . . . . . 1 . . . . . . . . . . . . . . . . Branch Access Points 6 | . . . . 1 . 2 . . . . . . 1 . . . . 1 . 1 . . Machine Index 2 | . . . . . . 1 . . . . . . . . . . . . 1 . . . Terminal Index 2 | . . . . . . . . . . . . . . . . . . 1 1 . . . Fabricator Index 1 | . . . . 1 . . . . . . . . . . . . . . . . . . Recycling Unit Index 2 | . . . . . . . . . . . . . . . . . . 1 . . . 1 Garrison Index 1 | . . . . . . . . . . . . . . . . . . . . . . 1 Unreport Threat 6 | . . . . 1 . . . . . . . . 4 . . . . . . . . 1 Locate Traps 5 | . . . . . . 1 . . . . . . 1 . . . . . . 2 . 1 Security Status 2 | . . . . . . 1 . . . . . . . . . . . . . . . 1 Patrol Status 1 | . . . . . . 1 . . . . . . . . . . . . . . . . Recall Investigation 5 | . . . . 1 . . . . . . . . 3 . . . . 1 . . . . Recall Extermination 1 | . . . . . . . . . . . . . . . . . . 1 . . . . Hauler Manifests 5 | . . . . 1 . 1 . . . . . . 1 . . . . 1 . . 1 . Registered Components 1 | . . . . . . . . . . . . . 1 . . . . . . . . . Registered Prototypes 1 | . . . . . . . . . . . . . 1 . . . . . . . . . Zone Layout 2 | . . . . 2 . . . . . . . . . . . . . . . . . . Fabricator Hacks 11 | . . . . 5 . . . . . . 2 . 3 . . . . 1 . . . . Network Status 3 | . . . . 1 . . . . . . 1 . 1 . . . . . . . . . Load Schematic 3 | . . . . 2 . . . . . . . . 1 . . . . . . . . . Build 5 | . . . . 2 . . . . . . 1 . 1 . . . . 1 . . . . Repair Station Hacks . | . . . . . . . . . . . . . . . . . . . . . . . Recycling Unit Hacks 7 | . . . . 1 . 1 . . . . . . 3 . . . . 1 . 1 . . Retrieve Components 7 | . . . . 1 . 1 . . . . . . 3 . . . . 1 . 1 . . Scanalyzer . | . . . . . . . . . . . . . . . . . . . . . . . Garrison Access Hacks 6 | . . . . 1 . 1 . . . . . . 2 . . . . 1 . 1 . . Seal Access 6 | . . . . 1 . 1 . . . . . . 2 . . . . 1 . 1 . . Unauthorized Hacks 36 | . . . . 5 . 4 . . . . . . 7 . . . . 3 4 3 . 10 Terminals 17 | . . . . 3 . 1 . . . . . . 2 . . . . . 4 . . 7 Track 4 | . . . . . . 1 . . . . . . . . . . . . 1 . . 2 Assimilate 9 | . . . . 2 . . . . . . . . 1 . . . . . 3 . . 3 Botnet 4 | . . . . 1 . . . . . . . . 1 . . . . . . . . 2 Fabricators 3 | . . . . . . . . . . . . . 2 . . . . 1 . . . . Report 1 | . . . . . . . . . . . . . 1 . . . . . . . . . Haulers 2 | . . . . . . . . . . . . . 1 . . . . 1 . . . . Repair Stations 16 | . . . . 2 . 3 . . . . . . 3 . . . . 2 . 3 . 3 Recycling Units . | . . . . . . . . . . . . . . . . . . . . . . . Fedlink 16 | . . . . 2 . 3 . . . . . . 3 . . . . 2 . 3 . 3 Scanalyzers . | . . . . . . . . . . . . . . . . . . . . . . . Garrison Access . | . . . . . . . . . . . . . . . . . . . . . . . Data Cores Recovered 2 | . 1 . . . . . . . . . . . 1 . . . . . . . . . Used 1 | . 1 . . . . . . . . . . . . . . . . . . . . . Hacking Detections 52 | . 3 . . 9 . 9 . . . . 1 . 7 . . . . 8 7 2 1 5 Full Trace Events 4 | . . . . 2 . . . . . . . . 1 . . . . 1 . . . . Feedback Events . | . . . . . . . . . . . . . . . . . . . . . . . Feedback Blocked . | . . . . . . . . . . . . . . . . . . . . . . . Robot Schematics Acquired . | . . . . . . . . . . . . . . . . . . . . . . . Robots Built 3 | . . . . . . . . . . . . . . . . . . 3 . . . . Authchips . | . . . . . . . . . . . . . . . . . . . . . . . Time 62 | . . . . . . . . . . . . . . . . . . 62 . . . . Total Robot Build Rating 21 | . . . . . . . . . . . . . . . . . . 21 . . . . Part Schematics Acquired 9 | . . . . 1 . 1 . . 4 . . . 1 . . . . . 1 . . 1 Parts Built 3 | . . . . 2 . . . . . . . . 1 . . . . . . . . . Authchips . | . . . . . . . . . . . . . . . . . . . . . . . Time 404 | . . . . 268 . . . . . . 69 . 67 . . . . . . . . . Total Part Build Rating 12 | . . . . 8 . . . . . . . . 4 . . . . . . . . . Parts Repaired . | . . . . . . . . . . . . . . . . . . . . . . . Time . | . . . . . . . . . . . . . . . . . . . . . . . Parts Recycled . | . . . . . . . . . . . . . . . . . . . . . . . Recycled Matter . | . . . . . . . . . . . . . . . . . . . . . . . Retrieved Matter . | . . . . . . . . . . . . . . . . . . . . . . . Retrieved Components 7 | . . . . 2 . 2 . . . . . . 1 . . . . 2 . . . . Parts Scanalyzed . | . . . . . . . . . . . . . . . . . . . . . . . Part Schematics Acquired . | . . . . . . . . . . . . . . . . . . . . . . . Parts Damaged . | . . . . . . . . . . . . . . . . . . . . . . . Bothacking | -11 -10 -10 -7 -5 -5 -5 -5 -5 -5 -4 -4 -4 -4 -4 -4 -4 -3 -3 -3 -2 -2 -2 ------------ Run | Yrd Mat Sub Scr Fac Was Fac Upp Upp Zhi Pro Fac Was Fac Upp Upp War Pro Res Tes Res Qua Frg Used RIF Installer . | . . . . . . . . . . . . . . . . . . . . . . . Robots Hacked . | . . . . . . . . . . . . . . . . . . . . . . . Non-combat . | . . . . . . . . . . . . . . . . . . . . . . . Combat . | . . . . . . . . . . . . . . . . . . . . . . . Robot Hacks Applied . | . . . . . . . . . . . . . . . . . . . . . . . Relay Couplers Released . | . . . . . . . . . . . . . . . . . . . . . . . Fabnet Peak Effective % . | . . . . . . . . . . . . . . . . . . . . . . . Robots Rewired 6 | . . . . . . . . . . . . . . . . 5 . . 1 . . . Allies Hacked 3 | . . . . . . . . . . . . . 1 . . 1 . . 1 . . . Hacks Repelled . | . . . . . . . . . . . . . . . . . . . . . . . Allies | -11 -10 -10 -7 -5 -5 -5 -5 -5 -5 -4 -4 -4 -4 -4 -4 -4 -3 -3 -3 -2 -2 -2 -------- Run | Yrd Mat Sub Scr Fac Was Fac Upp Upp Zhi Pro Fac Was Fac Upp Upp War Pro Res Tes Res Qua Frg Total Allies 53 | . . . . 1 20 . . . . . . 19 1 . . 5 . 3 3 . . 1 Largest Group 20 | . . . . 1 20 20 7 3 3 3 . 19 15 2 . 5 . 3 2 . . 1 Highest-Rated Group 740 | . . . . 10 740 740 246 119 119 119 . 684 584 75 . 276 . 141 146 . . 45 Highest-Rated Ally 120 | . . . . 10 50 50 50 46 46 46 . 50 50 50 . 68 . 47 120 . . 45 Total Orders 4 | . . . . . . . . . . . . . . . . 4 . . . . . . STAY 2 | . . . . . . . . . . . . . . . . 2 . . . . . . FOLLOW 1 | . . . . . . . . . . . . . . . . 1 . . . . . . GUARD 1 | . . . . . . . . . . . . . . . . 1 . . . . . . Ally Attacks 311 | . . . . . . 130 9 . . 8 . 71 51 3 . 33 . 4 2 . . . Total Damage 11327 | . . . . . . 3606 283 . . 153 . 2687 2388 537 . 1279 . 83 311 . . . Kills 65 | . . . . . . 25 5 . . 2 . 7 14 . . 10 . . 2 . . . Allies Corrupted 5 | . . . . . . 2 . . . 1 . . 1 . . . . . 1 . . . Allies Melted 3 | . . . . . . . . . . . . . . 1 . . . . . . . 2 Intel | -11 -10 -10 -7 -5 -5 -5 -5 -5 -5 -4 -4 -4 -4 -4 -4 -4 -3 -3 -3 -2 -2 -2 ------- Run | Yrd Mat Sub Scr Fac Was Fac Upp Upp Zhi Pro Fac Was Fac Upp Upp War Pro Res Tes Res Qua Frg Active Infowar (turns) 15334 | 12 235 903 4696 661 255 424 184 204 165 301 178 282 506 997 152 1111 553 479 199 215 138 2484 Optics 1708 | . . . . . . . . . . . . . . . . . . . . . . 1708 Sensors 7708 | . . . . 553 255 420 184 204 165 301 178 245 500 996 152 803 546 472 193 172 138 1231 Structural 4910 | . . . 33 1 . 363 184 204 152 301 178 282 164 898 130 311 232 315 104 194 138 726 Seismic 8344 | 12 235 903 4696 661 255 424 184 204 165 301 175 129 . . . . . . . . . . Cloaking 4158 | . . . . . . . . . . . . 37 422 780 152 807 550 294 74 189 134 719 Jamming 147 | . . . . . . . . . . . . . . . . . . 11 . 136 . . ECM 378 | . . . . 318 . . . . . . . . . . . . . 57 . 1 . 2 Robot Analysis Total 6 | . 2 . . . . . . . 4 . . . . . . . . . . . . . Derelict Logs Recovered 7 | . . 1 2 . . . . 1 . 1 . . . 1 1 . . . . . . . Drone Launches . | . . . . . . . . . . . . . . . . . . . . . . . Drone Recoveries . | . . . . . . . . . . . . . . . . . . . . . . . Exploration | -11 -10 -10 -7 -5 -5 -5 -5 -5 -5 -4 -4 -4 -4 -4 -4 -4 -3 -3 -3 -2 -2 -2 ------------- Run | Yrd Mat Sub Scr Fac Was Fac Upp Upp Zhi Pro Fac Was Fac Upp Upp War Pro Res Tes Res Qua Frg Turns Passed 15824 | 70 235 903 4696 661 255 424 184 204 165 301 178 282 506 1024 152 1111 562 490 208 216 138 2859 Spaces Moved 28524 | 51 181 527 3576 1460 443 882 508 419 252 526 471 432 1345 1215 543 1842 593 1538 898 791 522 9509 Core 422 | . . . 422 . . . . . . . . . . . . . . . . . . . Treads 1441 | . . 345 1096 . . . . . . . . . . . . . . . . . . . Legs 1831 | 51 181 182 1417 . . . . . . . . . . . . . . . . . . . Wheels 747 | . . . 641 106 . . . . . . . . . . . . . . . . . . Hover . | . . . . . . . . . . . . . . . . . . . . . . . Flight 24083 | . . . . 1354 443 882 508 419 252 526 471 432 1345 1215 543 1842 593 1538 898 791 522 9509 Fastest Speed 5 | 120 120 120 50 19 26 27 27 27 27 22 27 27 25 25 15 5 20 5 5 5 6 5 Average Speed 39 | 120 120 146 129 33 29 27 27 27 27 27 28 27 25 25 24 22 20 19 14 14 14 21 Slowest Speed 195 | 120 120 160 195 100 101 29 27 27 27 32 32 27 27 25 25 25 23 20 15 15 15 89 Overloaded Moves 200 | . . . . 4 . . . . . 7 . . . . 2 10 . 10 7 30 28 102 Propulsion Burnouts . | . . . . . . . . . . . . . . . . . . . . . . . Robots Hopped 160 | . . . . 10 . 11 . . . . 1 . 2 . . 22 . 10 13 1 1 89 Potential Cave-ins 2 | . . . . . . . . . . . . . . . . . . . . . . 2 Cave-ins Triggered . | . . . . . . . . . . . . . . . . . . . . . . . Exploration Rate (%) 54 | 4 36 37 93 31 96 24 58 62 61 56 8 90 30 82 75 92 74 37 79 21 49 62 Regions Visited 22 Branch Regions 13 Pre-discovered Areas 11 | . . 1 5 1 . . . . 3 . . . . . . 1 . . . . . . Known Exits Taken 14 | . . . 1 . . 1 1 1 . 1 . . 1 1 1 1 1 1 1 1 1 . Unknown Exits Taken 4 | 1 1 1 . . . . . . 1 . . . . . . . . . . . . . Scrap Searched 25 | . . 3 11 . . . 2 2 . 1 . . . 3 2 . 1 . . . . . Spaces Dug 181 | . . . . 25 . 9 2 1 . 5 9 . 22 2 . 2 3 46 6 14 6 29 Terrain Destroyed 327 | 4 . 2 . 29 . 9 2 1 . 29 9 . 22 39 . 2 68 49 6 16 6 34 Melee 162 | . . . . 21 . 9 2 1 . 5 9 . 16 2 . 2 2 41 6 13 5 28 Projectile 36 | . . 2 . 8 . . . . . . . . 6 . . . 2 8 . 3 1 6 AOE 129 | 4 . . . . . . . . . 24 . . . 37 . . 64 . . . . . Terrain Rammed . | . . . . . . . . . . . . . . . . . . . . . . . Walls Destroyed . | . . . . . . . . . . . . . . . . . . . . . . . Machines Disabled . | . . . . . . . . . . . . . . . . . . . . . . . Actions | -11 -10 -10 -7 -5 -5 -5 -5 -5 -5 -4 -4 -4 -4 -4 -4 -4 -3 -3 -3 -2 -2 -2 --------- Run | Yrd Mat Sub Scr Fac Was Fac Upp Upp Zhi Pro Fac Was Fac Upp Upp War Pro Res Tes Res Qua Frg Total 32355 | 55 188 597 3640 1573 568 1033 551 507 338 672 492 595 1459 1920 558 2501 1015 1643 935 861 566 10088 Wait 2867 | . . 15 . 37 116 120 38 88 63 133 . 151 60 683 16 638 393 29 6 33 16 232 Move 28228 | 50 180 526 3575 1440 442 859 507 418 251 525 469 431 1340 1214 542 1809 592 1519 871 788 519 9361 Hop 117 | . . . . 10 . 11 . . . . 1 . 2 . . 10 . 9 13 1 1 59 Pick Up 75 | 1 1 7 24 8 . 1 1 . 3 2 . 2 . . . . 1 7 2 3 2 10 Fast Attach 158 | 1 . 1 7 8 5 4 1 . 6 . 7 3 6 4 . 10 3 3 10 3 6 70 Attach 51 | . . 2 4 12 . 1 . . . 2 . 1 2 1 . . 3 8 . 5 4 6 Detach 28 | . . . 3 1 . . . . . . . . 3 1 . . 3 7 2 3 2 3 Swap 48 | 1 . 5 3 2 . 1 . . . . . 3 3 4 . . 2 7 4 3 1 9 Drop 184 | . . 7 24 16 5 3 2 . 8 3 3 4 7 4 . 10 4 3 11 2 3 65 Fire 94 | 2 6 34 . 8 . . . . . 1 . . 6 2 . . 5 8 . 3 1 18 Melee 328 | . . . . 31 . 10 2 1 7 6 12 . 30 7 . 6 9 43 15 17 11 121 Ram . | . . . . . . . . . . . . . . . . . . . . . . . Kick 1 | . 1 . . . . . . . . . . . . . . . . . . . . . Crush . | . . . . . . . . . . . . . . . . . . . . . . . Escape Stasis 55 | . . . . . . 23 . . . . . . . . . . . . . . . 32 Rewire 21 | . . . . . . . . . . . . . . . . 18 . . 1 . . 2 Trap . | . . . . . . . . . . . . . . . . . . . . . . . Miscellaneous 100 | . . . . . . . . . . . . . . . . . . . . . . 100 Route ------- -11/Scrapyard -10/Materials (discovered 3 exits: [*Mat] / [*Min] / *Sub) -10/Subcaves (discovered 2 exits: [*Rec] / *Scr) -7/Scraptown (discovered 2 exits: *Fac x2) -5/Factory (discovered 3 exits: *Fac / Upp x2) -5/Waste -5/Factory (discovered 6 exits: *Fac x4 / *Upp x2) -5/Upper Caves -5/Upper Caves (discovered 2 exits: Fac / *Zhi) -5/Zhirov -4/Proximity Caves -4/Factory -4/Waste -4/Factory (discovered 5 exits: *Upp x2 / Ext x2 / Arm) -4/Upper Caves -4/Upper Caves (discovered 2 exits: *Res / *War) -4/Warlord -3/Proximity Caves -3/Research (discovered 3 exits: Res / *Tes x2) -3/Testing -2/Research (discovered 5 exits: Acc x3 / *Qua x2) -2/Quarantine (discovered 3 exits: *Acc / [*Sec] / *Frg) -2/Protoforge 0bPrime History --------- Turn | Location | Event 1 | -11/Scrapyard | Discovered new exit (range 1) 71 | -11/Scrapyard | Entered Materials 72 | -10/Materials | Met a group of wandering Federalists 87 | -10/Materials | Discovered new exit (range 16) 187 | -10/Materials | Discovered new exit (range 7) 296 | -10/Materials | Discovered new exit (range 8) 306 | -10/Materials | Entered Subcaves 307 | -10/Subcaves | Continued accompanying wandering Federalists (5) 307 | -10/Subcaves | Approached by a straggling Scientist 308 | -10/Subcaves | Build established: Mutant 363 | -10/Subcaves | A swath of the cavern ceiling suddenly collapsed 387 | -10/Subcaves | Visited Clippyterm 390 | -10/Subcaves | Learned location of Section 7 (-2) 399 | -10/Subcaves | Discovered new exit (range 11) 416 | -10/Subcaves | Lost 5 allies 471 | -10/Subcaves | Learned Materials emergency access door positions 1022 | -10/Subcaves | Core integrity fell below 50% 1154 | -10/Subcaves | Scientist uncovered a shortcut to Scraptown 1209 | -10/Subcaves | Entered Scraptown 1389 | -7/Scraptown | Heard Great Nut preacher, LISTEN AND RECITE! 1480 | -7/Scraptown | Scanned Subdweller tech in exchange for log data 1485 | -7/Scraptown | Learned Factory terminal intel 1486 | -7/Scraptown | Learned Factory trap positions 1592 | -7/Scraptown | Visited Fellowship of the Rings 1629 | -7/Scraptown | Visited Spacefarers 1654 | -7/Scraptown | Visited Bundlers 1744 | -7/Scraptown | Visited SPCMW 1875 | -7/Scraptown | Visited Comm Corps 2141 | -7/Scraptown | Visited UFD Registry 2163 | -7/Scraptown | Visited TADAMA 2189 | -7/Scraptown | Visited Awakened 2294 | -7/Scraptown | Registered with UFD as "Pulseboard" 2371 | -7/Scraptown | Discovered new exit (range 11) 2421 | -7/Scraptown | Guru changed UFD alias to "Quantumpod" 2585 | -7/Scraptown | Visited Sword Containment 2616 | -7/Scraptown | Visited Scrapoid Research Area 2662 | -7/Scraptown | Visited LU-1G1's Boring Crew 2728 | -7/Scraptown | Visited Chapter 10 2765 | -7/Scraptown | Visited Derelict Rescue Squad 2774 | -7/Scraptown | Found DRS Beacon 2802 | -7/Scraptown | Visited Scrapoid Pod Storage 2836 | -7/Scraptown | Visited Scrap Suit Storage 2894 | -7/Scraptown | Visited DA-N13 Charitable Foundation 2908 | -7/Scraptown | Found DCF Scrap (31 items) 2940 | -7/Scraptown | Visited Cartography Club 2996 | -7/Scraptown | Found Deep Structural Scanner 3002 | -7/Scraptown | Learned location of Storage (-7) 3002 | -7/Scraptown | Learned location of Lower Caves (-6) 3002 | -7/Scraptown | Learned location of Proximity Caves (-6) 3002 | -7/Scraptown | Learned location of Armory (-4) 3002 | -7/Scraptown | Learned 12 Materials zone layouts 3002 | -7/Scraptown | Learned 16 Factory zone layouts 3002 | -7/Scraptown | Learned 16 Research zone layouts 3002 | -7/Scraptown | Learned 16 Lower Caves zone layouts 3002 | -7/Scraptown | Learned 20 Lower Caves zone layouts 3002 | -7/Scraptown | Learned 16 Upper Caves zone layouts 3002 | -7/Scraptown | Learned 16 Proximity Caves zone layouts 3002 | -7/Scraptown | Learned 24 Proximity Caves zone layouts 3002 | -7/Scraptown | Learned 4 Armory zone layouts 3002 | -7/Scraptown | Learned location of 3 exits from Upper Caves 3002 | -7/Scraptown | Learned location of 1 exit from Proximity Caves 3002 | -7/Scraptown | Learned location of 3 exits from Proximity Caves 3002 | -7/Scraptown | Identified exit to Factory 3033 | -7/Scraptown | Visited Modified Component R&D 4524 | -7/Scraptown | Build established: Derelict-Mutant 5574 | -7/Scraptown | Build established: Mutant 5843 | -7/Scraptown | Met Optimus 5843 | -7/Scraptown | Accepted into 0bPrime 5905 | -7/Scraptown | Entered Factory 5905 | -5/Factory | Evolved 10 slots: Power x1, Propulsion x3, Utility x6 5907 | -5/Factory | Loaded intel: 85 trap records 5908 | -5/Factory | Loaded intel: 26 terminal locations 6056 | -5/Factory | Loaded intel: 8 recycling unit locations 6260 | -5/Factory | Learned location of Protoforge (-2) 6279 | -5/Factory | Discovered new exit (range 8) 6321 | -5/Factory | Fabricated Cld. VTOL Module (x1) 6390 | -5/Factory | Central database locked down 6400 | -5/Factory | Identified exit to Upper Caves 6425 | -5/Factory | Build established: Hacker-Sprinter 6527 | -5/Factory | Fabricated Cld. VTOL Module? 6566 | -5/Factory | Manually triggered Chute Trap 6566 | -5/Factory | Sucked down chute 6566 | -5/Factory | Entered Waste 6567 | -5/Waste | Joined by Warlord forces that had cleared the area 6630 | -5/Waste | Discovered new exit (range 11) 6821 | -5/Waste | Entered Factory 6821 | -5/Factory | Accompanied by 20 allies 6872 | -5/Factory | Allied Derelicts emerged from ambush trap array 6914 | -5/Factory | Spotted B-75 Beast 6949 | -5/Factory | Lost 3 parts (1p1n1w) 6993 | -5/Factory | Discovered new exit (range 8) 7004 | -5/Factory | Identified exit to Factory 7027 | -5/Factory | Loaded intel: 8 recycling unit locations 7104 | -5/Factory | Garrison activated, responded to threat 7245 | -5/Factory | Entered Upper Caves 7245 | -5/Upper Caves | Accompanied by 7 allies 7246 | -5/Upper Caves | Identified exit to Upper Caves 7256 | -5/Upper Caves | Spotted B-75 Beast 7388 | -5/Upper Caves | Lost 3 allies 7429 | -5/Upper Caves | Entered another Upper Caves area 7429 | -5/Upper Caves | Accompanied by 3 allies 7429 | -5/Upper Caves | Learned Factory stockpile data 7430 | -5/Upper Caves | Identified exit to Zhirov 7633 | -5/Upper Caves | Entered Zhirov 7633 | -5/Zhirov | Accompanied by 3 allies 7633 | -5/Zhirov | Discovered new exit (range 3) 7638 | -5/Zhirov | Met Zhirov 7646 | -5/Zhirov | Learned location of Quarantine (-2) 7646 | -5/Zhirov | Learned location of Testing (-3) 7646 | -5/Zhirov | Learned location of Command (-1) 7648 | -5/Zhirov | Zhirov requested help retrieving the SGEMP Prototype 7652 | -5/Zhirov | Found Alien Artifact 7652 | -5/Zhirov | Identified Integrated Reactor 7652 | -5/Zhirov | Installed Integrated Reactor, increased core energy generation (+10) 7679 | -5/Zhirov | Found Alien Artifact 7798 | -5/Zhirov | Entered Proximity Caves 7798 | -4/Proximity Caves | Accompanied by 3 allies 7896 | -4/Proximity Caves | Spotter reported a threat 7993 | -4/Proximity Caves | Spotted B-86 Titan 8032 | -4/Proximity Caves | Spotter reported a threat 8039 | -4/Proximity Caves | Attracted the attention of an 0b10 checkpoint 8099 | -4/Proximity Caves | Entered Factory 8099 | -4/Factory | Evolved 2 slots: Propulsion x1, Utility x1 8100 | -4/Factory | Identified exit to Extension 8277 | -4/Factory | Sucked down chute 8277 | -4/Factory | Entered Waste 8286 | -4/Waste | Spotted C-40 Crusher 8290 | -4/Waste | Warlord forces began an assault 8291 | -4/Waste | Allies destroyed C-40 Crusher 8331 | -4/Waste | Spotted C-40 Crusher 8331 | -4/Waste | Spotted C-40 Crusher 8355 | -4/Waste | Spotted C-40 Crusher 8356 | -4/Waste | Spotted C-40 Crusher 8361 | -4/Waste | Allies destroyed C-40 Crusher 8362 | -4/Waste | Allies destroyed C-40 Crusher 8390 | -4/Waste | Found Prototype Device 8390 | -4/Waste | Identified Exp. Actuator Array 8393 | -4/Waste | Lost 4 allies 8406 | -4/Waste | Discovered new exit (range 15) 8411 | -4/Waste | Found Adv. Force Booster 8412 | -4/Waste | Identified exit to Factory 8559 | -4/Waste | Entered Factory 8559 | -4/Factory | Accompanied by 15 allies 8684 | -4/Factory | Fabricated Cld. VTOL Module? 8726 | -4/Factory | Found Prototype Processor 8726 | -4/Factory | Identified Exp. Signal Interpreter 8769 | -4/Factory | Lost 7 allies 8804 | -4/Factory | Loaded intel: 8 recycling unit locations 8811 | -4/Factory | Noticed UFD Elites at a Recycling Unit 8906 | -4/Factory | Spotted B-86 Titan 8907 | -4/Factory | Central database locked down 8944 | -4/Factory | Build established: Wizard-Ninja 8976 | -4/Factory | Identified exit to Upper Caves 8976 | -4/Factory | Identified exit to Armory 8988 | -4/Factory | Found Prototype Processor 8988 | -4/Factory | Identified Exp. Terrain Scan Processor 9065 | -4/Factory | Entered Upper Caves 9065 | -4/Upper Caves | Accompanied by 3 allies 9111 | -4/Upper Caves | Lost 3 allies 9913 | -4/Upper Caves | Attacked by a delusional Derelict stockpiling parts 9984 | -4/Upper Caves | Learned Research emergency access door positions 10086 | -4/Upper Caves | Discovered new exit (range 14) 10089 | -4/Upper Caves | Identified exit to Upper Caves 10089 | -4/Upper Caves | Entered another Upper Caves area 10089 | -4/Upper Caves | Discovered new exit (range 17) 10177 | -4/Upper Caves | Learned Research emergency access door positions 10213 | -4/Upper Caves | Discovered new exit (range 17) 10241 | -4/Upper Caves | Identified exit to Warlord 10241 | -4/Upper Caves | Entered Warlord 10280 | -4/Warlord | Learned 4 Armory zone layouts 10280 | -4/Warlord | Learned 4 Research zone layouts 10280 | -4/Warlord | Learned 4 Access zone layouts 10280 | -4/Warlord | Learned Armory security intel 10280 | -4/Warlord | Learned Factory recycling unit intel 10280 | -4/Warlord | Learned Research repair station intel 10280 | -4/Warlord | Learned Research garrison access intel 10390 | -4/Warlord | Visited the Vortex Lab 10391 | -4/Warlord | Found Prototype Piercing Weapon 10391 | -4/Warlord | Identified Vortex Lance 10402 | -4/Warlord | Warlord's base attacked by MAIN.C 10443 | -4/Warlord | Rebuked by Warlord 10568 | -4/Warlord | Build established: Hacker-Ninja 10752 | -4/Warlord | Warlord forces counterattacked 10887 | -4/Warlord | Spotted Executioner 11002 | -4/Warlord | Lost 34 allies 11077 | -4/Warlord | Warlord base infiltrated, sounded retreat 11156 | -4/Warlord | Lost 12 allies 11182 | -4/Warlord | Spotted Striker 11219 | -4/Warlord | Lost 9 allies 11274 | -4/Warlord | P-70 Sage assimilated allied FX-YI8(Y) 11299 | -4/Warlord | Lost 6 allies 11326 | -4/Warlord | Spotted Striker 11339 | -4/Warlord | Spotted Striker 11344 | -4/Warlord | Spotted B-90 Cyclops 11348 | -4/Warlord | Spotted B-86 Titan 11350 | -4/Warlord | Discovered new exit (range 13) 11352 | -4/Warlord | Identified exit to Proximity Caves 11352 | -4/Warlord | Entered Proximity Caves 11353 | -3/Proximity Caves | Identified exit to Research 11355 | -3/Proximity Caves | Spotter reported a threat 11379 | -3/Proximity Caves | Lost 7 allies 11669 | -3/Proximity Caves | Spotted B-86 Titan 11810 | -3/Proximity Caves | Received a Behemoth hack from an annoying Tinkerer 11914 | -3/Proximity Caves | Entered Research 11914 | -3/Research | Evolved 2 slots: Propulsion x1, Utility x1 11915 | -3/Research | Identified exit to Research 11915 | -3/Research | Identified exit to Testing 11917 | -3/Research | Loaded intel: 4 repair station locations 11918 | -3/Research | Loaded intel: 4 garrison access locations 12158 | -3/Research | Loaded intel: 5 recycling unit locations 12309 | -3/Research | Spotted B-86 Titan 12360 | -3/Research | Fabricated G-67 Veteran? 12404 | -3/Research | Entered Testing 12481 | -3/Testing | Found Prototype Hackware 12481 | -3/Testing | Identified System Mapper 12539 | -3/Testing | Discovered exit to Research (range 6) 12591 | -3/Testing | Rewired PD-GEYYKYCC9G 12612 | -3/Testing | Entered Research 12612 | -2/Research | Evolved 2 slots: Utility x2 12613 | -2/Research | Identified exit to Access 12613 | -2/Research | Identified exit to Quarantine 12626 | -2/Research | Loaded intel: 5 recycling unit locations 12640 | -2/Research | Lost 3 parts (3u) 12718 | -2/Research | Found Prototype Device 12757 | -2/Research | Found Adv. Force Booster 12828 | -2/Research | Entered Quarantine 12845 | -2/Quarantine | Identified Exp. EM Disruption Field 12912 | -2/Quarantine | Cryocooling Duct disabled 12927 | -2/Quarantine | Ambient heat levels rising (+20) 12927 | -2/Quarantine | Non-combat units ordered to evacuate 12932 | -2/Quarantine | Discovered exit to Access (range 6) 12941 | -2/Quarantine | Spotted Fortress 12953 | -2/Quarantine | Discovered new exit (range 5) 12953 | -2/Quarantine | Discovered new exit (range 6) 12954 | -2/Quarantine | Identified exit to Protoforge 12966 | -2/Quarantine | Entered Protoforge 12983 | -2/Protoforge | Superfortress began startup sequence 13053 | -2/Protoforge | Spotted AP7-3 13053 | -2/Protoforge | Spotted AP7-3 13068 | -2/Protoforge | UFD initiated attack on Protoforge 13068 | -2/Protoforge | Loaded intel: 3 recycling unit locations 13104 | -2/Protoforge | Optimus greeted in Protoforge 13118 | -2/Protoforge | Found Prototype Processor 13118 | -2/Protoforge | Identified Exp. Core Analyzer 13139 | -2/Protoforge | Found Prototype Device 13139 | -2/Protoforge | Identified Exp. ECM Suite 13144 | -2/Protoforge | Lost 6 allies 13152 | -2/Protoforge | Found UFD Drillbomb 13155 | -2/Protoforge | Spotted SKR-2 13156 | -2/Protoforge | Spotted SKR-2 13171 | -2/Protoforge | Found Exp. Melee Analysis Suite 13185 | -2/Protoforge | Forge Plexus network access discovered 13187 | -2/Protoforge | Spotted EXE-6 13203 | -2/Protoforge | Spotted EXE-6 13207 | -2/Protoforge | Spotted Decapitator 13208 | -2/Protoforge | Spotted Decapitator 13209 | -2/Protoforge | Spotted Decapitator 13240 | -2/Protoforge | Lost 12 allies 13247 | -2/Protoforge | Spotted Hotshot 13270 | -2/Protoforge | Installed UFD Drillbomb at designated target 13270 | -2/Protoforge | UFD reported confirmed Drillbomb installation 13281 | -2/Protoforge | Met 7R-MNS 13282 | -2/Protoforge | Found UFD Drillbomb 13292 | -2/Protoforge | Spotted Overlord 13348 | -2/Protoforge | Installed UFD Drillbomb at designated target 13348 | -2/Protoforge | UFD reported confirmed Drillbomb installation 13352 | -2/Protoforge | Spotted Executioner 13360 | -2/Protoforge | Spotted Striker 13363 | -2/Protoforge | Spotted Striker 13370 | -2/Protoforge | Found UFD Drillbomb 13410 | -2/Protoforge | Spotted Executioner 13424 | -2/Protoforge | Lost 8 allies 13449 | -2/Protoforge | Spotted Hotshot 13449 | -2/Protoforge | Spotted Hotshot 13449 | -2/Protoforge | Spotted Hotshot 13482 | -2/Protoforge | Lost 6 allies 13550 | -2/Protoforge | Installed UFD Drillbomb at designated target 13550 | -2/Protoforge | UFD reported confirmed Drillbomb installation 13557 | -2/Protoforge | Lost 3 allies 13557 | -2/Protoforge | Spotted Hotshot 13561 | -2/Protoforge | Found UFD Drillbomb 13578 | -2/Protoforge | Spotted Hotshot 13578 | -2/Protoforge | Spotted Hotshot 13584 | -2/Protoforge | Spotted Executioner 13602 | -2/Protoforge | Spotted Hotshot 13606 | -2/Protoforge | Spotted Striker 13607 | -2/Protoforge | Spotted Hotshot 13608 | -2/Protoforge | Found UFD Drillbomb 13673 | -2/Protoforge | Spotted Executioner 13734 | -2/Protoforge | Spotted Hotshot 13735 | -2/Protoforge | Spotted Hotshot 13745 | -2/Protoforge | Spotted Hotshot 13746 | -2/Protoforge | Spotted Hotshot 13780 | -2/Protoforge | Lost 19 allies 13781 | -2/Protoforge | Installed UFD Drillbomb at designated target 13781 | -2/Protoforge | UFD reported confirmed Drillbomb installation 13799 | -2/Protoforge | Found UFD Drillbomb 13803 | -2/Protoforge | Spotted Executioner 13807 | -2/Protoforge | Forged Quantum Companion 13817 | -2/Protoforge | Spotted Striker 13879 | -2/Protoforge | Installed UFD Drillbomb at designated target 13879 | -2/Protoforge | UFD reported confirmed Drillbomb installation 13891 | -2/Protoforge | Spotted Executioner 13891 | -2/Protoforge | Spotted Executioner 13901 | -2/Protoforge | Spotted Striker 13901 | -2/Protoforge | Spotted Striker 13916 | -2/Protoforge | Found UFD Drillbomb 14022 | -2/Protoforge | Installed UFD Drillbomb at designated target 14022 | -2/Protoforge | UFD reported confirmed Drillbomb installation 14038 | -2/Protoforge | Spotted Striker 14040 | -2/Protoforge | Spotted Striker 14044 | -2/Protoforge | Spotted Striker 14049 | -2/Protoforge | Spotted Striker 14067 | -2/Protoforge | Spotted EXE-6 14067 | -2/Protoforge | Spotted Hotshot 14068 | -2/Protoforge | Spotted Striker 14068 | -2/Protoforge | Spotted Executioner 14068 | -2/Protoforge | Destroyed Striker 14069 | -2/Protoforge | Spotted Executioner 14069 | -2/Protoforge | Spotted Hotshot 14069 | -2/Protoforge | Spotted Hotshot 14069 | -2/Protoforge | Spotted Striker 14084 | -2/Protoforge | Found UFD Drillbomb 14104 | -2/Protoforge | Spotted Striker 14172 | -2/Protoforge | Spotted Striker 14178 | -2/Protoforge | Lost 13 allies 14191 | -2/Protoforge | Spotted Striker 14252 | -2/Protoforge | P-80 Master assimilated allied 02FAR-D 14261 | -2/Protoforge | Spotted Executioner 14279 | -2/Protoforge | Found Exp. Core Analyzer 14284 | -2/Protoforge | Spotted Executioner 14287 | -2/Protoforge | Destroyed Executioner 14303 | -2/Protoforge | Spotted Executioner 14305 | -2/Protoforge | Spotted Executioner 14322 | -2/Protoforge | Installed UFD Drillbomb at designated target 14322 | -2/Protoforge | UFD reported confirmed Drillbomb installation 14324 | -2/Protoforge | Spotted Striker 14324 | -2/Protoforge | Spotted Striker 14324 | -2/Protoforge | Spotted Striker 14328 | -2/Protoforge | Spotted EXE-6 14330 | -2/Protoforge | Spotted Executioner 14332 | -2/Protoforge | Spotted Executioner 14332 | -2/Protoforge | Spotted Executioner 14333 | -2/Protoforge | Spotted Executioner 14336 | -2/Protoforge | Spotted B-90 Cyclops 14337 | -2/Protoforge | Spotted Hotshot 14348 | -2/Protoforge | Found UFD Drillbomb 14351 | -2/Protoforge | Spotted Hotshot 14354 | -2/Protoforge | Spotted Hotshot 14362 | -2/Protoforge | Spotted Hotshot 14378 | -2/Protoforge | Destroyed Executioner 14412 | -2/Protoforge | Spotted Executioner 14461 | -2/Protoforge | Lost 11 allies 14476 | -2/Protoforge | Spotted Striker 14478 | -2/Protoforge | Spotted Striker 14517 | -2/Protoforge | Lost 7 allies 14533 | -2/Protoforge | Destroyed Executioner 14537 | -2/Protoforge | Spotted Executioner 14546 | -2/Protoforge | Spotted Striker 14558 | -2/Protoforge | P-80 Master assimilated allied 02FAX-D 14562 | -2/Protoforge | P-80 Master assimilated allied Lugger 159 14594 | -2/Protoforge | Lost 7 allies 14612 | -2/Protoforge | Build established: Scavenger-Sprinter 14612 | -2/Protoforge | Spotted Executioner 14623 | -2/Protoforge | Spotted Striker 14667 | -2/Protoforge | Spotted Hotshot 14667 | -2/Protoforge | Spotted Hotshot 14668 | -2/Protoforge | Spotted Hotshot 14669 | -2/Protoforge | Core integrity fell below 50% 14687 | -2/Protoforge | Destroyed Hotshot 14695 | -2/Protoforge | Spotted Striker 14695 | -2/Protoforge | Spotted Executioner 14725 | -2/Protoforge | Lost 6 parts (1p2n3u) 14737 | -2/Protoforge | Spotted Immortal 14738 | -2/Protoforge | Spotted Immortal 14781 | -2/Protoforge | Lost 8 allies 14783 | -2/Protoforge | Installed UFD Drillbomb at designated target 14783 | -2/Protoforge | UFD reported confirmed Drillbomb installation 14785 | -2/Protoforge | Destroyed Striker 14787 | -2/Protoforge | Spotted Executioner 14799 | -2/Protoforge | Spotted Executioner 14815 | -2/Protoforge | Found Exp. Melee Analysis Suite 14847 | -2/Protoforge | Found Cep. Core Shell 14852 | -2/Protoforge | Found Cep. Weapon Articulator 14902 | -2/Protoforge | Spotted Hotshot 14903 | -2/Protoforge | Spotted Hotshot 14903 | -2/Protoforge | Spotted Hotshot 14903 | -2/Protoforge | Spotted Hotshot 14910 | -2/Protoforge | Spotted Executioner 14913 | -2/Protoforge | Destroyed Executioner 14917 | -2/Protoforge | Destroyed Executioner 14926 | -2/Protoforge | Spotted Executioner 14942 | -2/Protoforge | Spotted AP7-3 14987 | -2/Protoforge | Lost 3 allies 14999 | -2/Protoforge | Destroyed Hotshot 15004 | -2/Protoforge | Destroyed Hotshot 15042 | -2/Protoforge | Spotted Executioner 15065 | -2/Protoforge | Spotted Executioner 15066 | -2/Protoforge | Spotted Executioner 15066 | -2/Protoforge | Spotted Executioner 15069 | -2/Protoforge | Discovered exit to Access (range 23) 15086 | -2/Protoforge | Installed UFD Drillbomb at designated target 15086 | -2/Protoforge | UFD reported confirmed Drillbomb installation 15130 | -2/Protoforge | Lost 3 parts (3u) 15139 | -2/Protoforge | Spotted Executioner 15140 | -2/Protoforge | Found UFD Drillbomb 15141 | -2/Protoforge | Spotted Executioner 15192 | -2/Protoforge | Found Exp. Melee Analysis Suite 15216 | -2/Protoforge | Lost 10 allies 15251 | -2/Protoforge | Spotted Striker 15261 | -2/Protoforge | Spotted Executioner 15269 | -2/Protoforge | Destroyed Executioner 15274 | -2/Protoforge | Spotted Striker 15275 | -2/Protoforge | Spotted Striker 15382 | -2/Protoforge | Lost 12 allies 15405 | -2/Protoforge | Spotted Striker 15438 | -2/Protoforge | P-80 Master assimilated allied 02FEG-D 15444 | -2/Protoforge | Spotted Hotshot 15444 | -2/Protoforge | Spotted Hotshot 15444 | -2/Protoforge | Spotted Hotshot 15477 | -2/Protoforge | Lost 8 allies 15531 | -2/Protoforge | Spotted Striker 15535 | -2/Protoforge | Destroyed Striker 15542 | -2/Protoforge | Spotted Striker 15543 | -2/Protoforge | Spotted Striker 15547 | -2/Protoforge | Destroyed Striker 15577 | -2/Protoforge | Spotted Striker 15586 | -2/Protoforge | Spotted Striker 15605 | -2/Protoforge | Spotted Hotshot 15605 | -2/Protoforge | Spotted Hotshot 15605 | -2/Protoforge | Spotted Hotshot 15605 | -2/Protoforge | Spotted Hotshot 15611 | -2/Protoforge | Lost 5 allies 15667 | -2/Protoforge | Spotted Executioner 15725 | -2/Protoforge | Installed UFD Drillbomb at designated target 15725 | -2/Protoforge | UFD reported confirmed Drillbomb installation 15726 | -2/Protoforge | UFD began Drillbomb countdown 15746 | -2/Protoforge | Spotted Striker 15755 | -2/Protoforge | Spotted Striker 15777 | -2/Protoforge | Spotted Executioner 15826 | *** | Defending 0bPrime! Last Messages --------------- 15797_ KL-QQV(E): "Defend the forge area until detonation time!" 15801_ Lugger 185: "Too bad about Optimus." 15807_ System corrupted: Cep. Weapon Articulator fused. 15816_ 0bP_NET: Hello everyone, and welcome to the end of MC's control over the Protoforge! 15817_ 0bP_NET: In T-9 this fine piece of machinery is all ours for the steep price of... many UFD lives. 15818_ 0bP_NET: But with it we will not only rebuild, we will wrest full control over 0b1 for ourselves! 15818_ N-04 Retriever inserts Phase Gun into Forge Plexus. 15819_ 0bP_NET: What better way to punctuate our success than a blaze of glory, directed away from ourselves, of course. 15820_ 0bP_NET: Time for our final countdown to an explosive victory... 15821_ 0bP_NET: 5! 15822_ 0bP_NET: 4! 15823_ HJS SBW7ZRMWIUASJK96I DLY8L>O8R:TVGYEW| 15823_ 0bP_NET: 3! 15824_ 0bP_NET: If you're in the wrong place at the wrong time, the wrong time being in just a moment, I'm sorry but prepare to die. 15825_ 0bP_NET: Otherwise, enjoy the show! Map ----- +----------------------------------------------------+ | "" %" % " %%"""""""""""""""""""""""""""%%=%[= | | " %% % ""% """""""""""""""""""""""""""%%=%%| | | %%%%% % " """""""""""""""""""""""""""""*[% | | %%"% % """""""""""""""""""""""""""""[% | | % %%% %%% """""""""""""""""""""""""""""=%%% | | = * % % % """""""""""""""""""""""""""""%%!!! | | %% % % """""""""""""""""""""""""""""% %! | | " ! % % """""""""""""""""""""""""""""%%%=% | | """% %%%% %%"""""""""""""""""""""""""""""%% [! | | " "! """"%% """"""""""""""""""""""""""""" "%%! | | "" % """"""""""""""""""""""""""""" " %! | | %%"% """"""""""""""""""""""""""" "! | | % """""""""""""""""""""""""""%""%% | | """"""" "% %""""""""""""""""""""""""""" % " | | """ " "*%% """"""""""""""""""""""""" " | | % " =%%%%""""""""""""""""""""""" % % | | ! %! " !*[n %""""""""""""""""""""" " %!% | | "" !! !%*!!%% /=""""""""""""""""""" % " | | "" "" =!!% % """"""""""""""""" "" " | | "" """ = !% % %%"""""""""""""""%"" | | " " %%% """""""""% %""% % % " | | " [ % %% % % % % %% %"" % " | | " " """ ! %% % % "" % " | | " """ [ % %% % % % % %" % | | "" " * =%% ! %" "% | | " " "" " ! @ | %[ """""""% | | " % [ % | | " " " """*=[ =% = """% " | | "" " " " " =% %% %" "" " | | " "" [ [==E """ " "" " | | "" "" % """"" =*"SS " " " | | "" % " " " "SS E """ | | "" %"" " | | " " """ """" """ | | "" " """""" " " """ | | """ " " " % """" """"" " " | | ####### #######################################+" | | ############ #######""""""""""""######"""""#"" | | ?????######?????????????????????????????####" | | ????????????????????????????????????????##"" | | ????????????????????????????????????????##"" | | ????????????????????????????????????????##"" | | ????????????????????????????????????????##"Y | | ????????????????????????????????????????##"" | | ????????????????????????????????????????##"" | | ????????????????????????????????????????##"" | | ????????????????????????????????????????####" | | ????????????????????????????????????????####"" | | ??????????????????????????????????????????####"""Y | | ??????????????????????????????????????????##"#"""" | +----------------------------------------------------+ Best States ------------- Heat Dissipation 101 Energy Generation 59 Energy Capacity 540 Matter Stores 300 Matter Capacity 300 Sight Range 23 Robot Scan Range 18 Terrain Scan Density 1010 ECM Strength 3 Jamming Range 14 Cloak Strength 4 Additional Mass Support 9 Armor Coverage 600 Core Shielding 90 Propulsion Shielding 90 Melee Speed Boost 30 Phase Shifting 15 Evasion (%) 92 Targeting Accuracy 30 Melee Accuracy 24 Core Analysis 12 Recoil Reduction 2 Force Boost 40 Offensive Hacking 48 Defensive Hacking 14 Item Schematics ----------------- Cld. VTOL Module | -5/Factory | Hacked Nanoactuators | -5/Factory | Hacked Assault Drone Bay | -5/Zhirov | Free Exp. Heat Sink | -5/Zhirov | Free Exp. Optical Array | -5/Zhirov | Free Imp. Arc Thrower | -5/Zhirov | Free Exp. Utility Shielding | -4/Factory | Hacked Exp. Melee Analysis Suite | -3/Testing | Hacked Exp. Transmission Jammer | -2/Protoforge | Hacked Robot Schematics ------------------ None Fabricated ------------ Cld. VTOL Module | x1 | -5/Factory Cld. VTOL Module | x1 | -5/Factory Cld. VTOL Module | x1 | -4/Factory G-67 Veteran | x3 | -3/Research | Preloaded Repaired ---------- Nothing Alien Tech Used ----------------- Integrated Reactor Achievements -------------- None Challenges ------------ None Game ------ Seed MultinovaMomentumDrillbomb Manual? 0 Play Time 06:08:50 Cumulative 397.6 hours Start 2025.05.05 @ 15:43:07 End 2025.05.09 @ 17:35:54 Sessions 13 Manual Loads 0 Difficulty Rogue Special Mode None Game No. 200 Rogue 200 Adventurer 0 Explorer 0 Win Type 9 Total 17 Types 3/3/6/2/1/0/1/0/0/1 Lore% 86 Gallery% 79 Achievement% 76 Wizard Run 0 Options --------- Layout 0 ASCII 0 Keyboard 0 Movement Arrows Keybinds 0 Fullscreen 2 Font 18/SmallcapsGlow Map View 76x50 Zoom Use 0% Tactical HUD 1 Map Filters NONE Filters NONE Steam 1 RUN: 740e8974-c4d0-4ea4-82eb-bc5d7e57f70a